Cogmind - Beta 15 @@@ ROGUE MODE // 2025.05.10 @ 00:22:16 Player: H3-RMN Result: Destroyed by S-10 Pest with Light Assault Rifle Performance ------------- Evolutions (0) 0 Regions Visited (3) 600 Robots Destroyed (41) 205 Value Destroyed (1052) 1052 Prototype IDs (13) 260 Alien Tech Used (0) 0 Bonus (0) 0 TOTAL SCORE: 2117 Bonus ------- None Cogmind --------- Core Integrity 0/250 Matter 300/300 Energy 175/200 System Corruption 1% Temperature Cool (99) Movement Treading (320) Ox2 Location -8/Recycling Parts ------- > --- POWER (1) -------- Subdweller Power Source > --- PROPULSION (2) --- Light Treads Subdweller Monowheel > --- UTILITY (2) ------ Large Storage Unit Makeshift Light Armor Plating > --- WEAPON (2) ------- Subdweller Beam Cannon Subdweller Beam Cannon > --- INVENTORY (15) --- Subdweller Power Source Subdweller Monowheel Subdweller Monowheel Flightbrick Medium Storage Unit Scrap Shield Subdweller Beam Cannon Grenade Launcher Datajack Multitool Shrapnel Trap Peak State ------------ > --- POWER ------------ Subdweller Power Source > --- PROPULSION ------- Light Treads Subdweller Monowheel > --- UTILITY ---------- Large Storage Unit Makeshift Light Armor Plating > --- WEAPON ----------- Subdweller Beam Cannon Subdweller Beam Cannon > --- INVENTORY -------- Subdweller Power Source Wheel Subdweller Monowheel Flightbrick Medium Storage Unit Weight Redist. System Battle Rifle Grenade Launcher Datajack Mining Laser Multitool Shrapnel Trap [Rating: 19] Favorites ----------- Power Ion Engine Engine Ion Engine Propulsion Light Treads Treads Light Treads Wheel Subdweller Monowheel Utility Large Storage Unit Device Seismic Detector Storage Large Storage Unit Processor Improved Targeting Computer Protection Makeshift Light Armor Plating Weapon Subdweller Beam Cannon Energy Cannon Subdweller Beam Cannon Ballistic Gun Assault Rifle Launcher Grenade Launcher Special Weapon Mining Laser Build | -11 -10 -10 -8 ------- Run | Yrd Mat Sub Rec Slots Evolved . | . . . . Power . | . . . . Propulsion . | . . . . Utility . | . . . . Weapon . | . . . . Parts Attached 28 | 8 6 14 . Power 2 | 1 . 1 . Engine 2 | 1 . 1 . Core . | . . . . Reactor . | . . . . Propulsion 8 | 3 3 2 . Treads 4 | 1 2 1 . Leg . | . . . . Wheel 4 | 2 1 1 . Hover . | . . . . Flight . | . . . . Utility 6 | 2 3 1 . Device 1 | 1 . . . Storage 3 | 1 2 . . Processor 1 | . 1 . . Hackware . | . . . . Protection 1 | . . 1 . Artifact . | . . . . Weapon 12 | 2 . 10 . Energy Gun . | . . . . Energy Cannon 3 | . . 3 . Ballistic Gun 7 | 2 . 5 . Ballistic Cannon . | . . . . Launcher 1 | . . 1 . Special Weapon 1 | . . 1 . Impact Weapon . | . . . . Slashing Weapon . | . . . . Piercing Weapon . | . . . . Special Melee Weapon . | . . . . Unidentified Prototypes . | . . . . Parts Lost 6 | . . 6 . Power . | . . . . Propulsion 2 | . . 2 . Utility . | . . . . Weapon 4 | . . 4 . Highest Loss Streak 2 | . . 2 . To Critical Strikes . | . . . . Average Backups 11 | 3 9 13 10 Power 1 | . 1 1 1 Propulsion 2 | 1 2 2 3 Utility 3 | . 3 4 2 Weapon 3 | . 3 3 2 Tool/Special . | . . . . Unused Backups 14 | . 1 7 6 Power 3 | . 1 1 1 Propulsion 3 | . . . 3 Utility 3 | . . 3 . Weapon 3 | . . 3 . Tool/Special 2 | . . . 2 Average Slot Usage (%) 99 | . 100 99 100 Engine 14 | . 14 14 14 Treads 15 | . 14 16 14 Wheel 12 | . 14 11 14 Storage 14 | . 14 14 14 Processor 7 | . 13 5 . Protection 5 | . . 7 14 Energy Cannon 8 | . . 9 28 Ballistic Gun 18 | . 28 16 . Peak Build Rating 19 | 7 9 19 19 Average Rating 12 | 5 8 13 19 On Entrance 8 | . 7 9 19 Naked Turns . | . . . . Heaviest Build 45 | 14 28 45 45 Greatest Support 40 | 26 16 40 20 Greatest Overweight (x) 2 | . 2 2 2 Average Overweight (x) 1 | . 1 1 2 Largest Inventory Capacity 15 | 8 15 15 15 Average Capacity 13 | 7 11 15 15 Most Carried 15 | 5 15 15 15 Average Carried 12 | 3 9 14 15 Final Capacity 15 | 8 15 15 15 Final Carried 15 | 5 15 15 15 Class Distribution -------------------- 96% | Mutant 3% | Scavenger-Mutant Dominant Class ---------------- Mutant | -10/Materials Mutant | -10/Subcaves Mutant | -8/Recycling Resources | -11 -10 -10 -8 ----------- Run | Yrd Mat Sub Rec Matter Collected 1169 | 344 329 496 . Remotely . | . . . . Salvage Created 1268 | 183 602 433 50 Parts 84 | 12 41 27 4 Haulers Intercepted 2 | . 2 . . Recyclers Shooed 3 | . 3 . . Parts Field Recycled . | . . . . Retrieved Matter . | . . . . Parts Self-Destructed 13 | . . 13 . Prevented . | . . . . Kills | -11 -10 -10 -8 ------- Run | Yrd Mat Sub Rec Combat Hostiles Destroyed 26 | . 10 15 1 Guns 14 | . 10 4 . Cannons 4 | . . 3 1 AOE 8 | . . 8 . Classes Destroyed 10 | 2 4 3 1 Tunneler 6 | 5 1 . . Hauler 2 | . 2 . . Recycler 1 | 1 . . . Mechanic 1 | . 1 . . Turret 2 | . . 2 . Watcher 3 | . 3 . . Swarmer 4 | . . 4 . Grunt 12 | . 10 2 . Sentry 1 | . . . 1 Subdweller 9 | . . 9 . Best Kill Streak 6 | 6 4 6 1 Combat Bots Only 4 | . 4 4 1 Max Kills in Single Turn 2 | 1 2 2 1 Gunslinging . | . . . . Exploded 2 | . . 2 . Melee . | . . . . Uniques/NPCs Destroyed . | . . . . Combat | -11 -10 -10 -8 -------- Run | Yrd Mat Sub Rec Hostile Shots Fired 120 | . 40 75 5 Missed 34 | . 8 25 1 Hits 86 | . 32 50 4 Projectile 86 | . 32 50 4 Critical Strikes 1 | . . 1 . Damage Taken 1544 | . 376 1132 36 Core 250 | . 55 174 21 Absorbed by Shields . | . . . . Core Remaining (%) 100 | 100 . . . Volleys Fired 141 | 16 63 58 4 Largest 2 | 2 2 2 2 Hottest 160 | 40 40 160 160 Shots Fired 260 | 32 127 94 7 Gun 204 | 32 127 45 . Cannon 37 | . . 30 7 Launcher 14 | . . 14 . Special 5 | . . 5 . Kinetic 204 | 32 127 45 . Thermal 42 | . . 35 7 Explosive 14 | . . 14 . Electromagnetic . | . . . . Robot Hit Streak 22 | 5 22 14 3 Robot Miss Streak 4 | 3 2 4 2 Penetration Max . | . . . . Secondary Targets 1 | . 1 . . Max Gunslinging Chain 1 | . 1 . . Shots Hit Robots 164 | 18 96 49 1 Core Hits 68 | 9 31 27 1 Critical Kills 1 | . . 1 . Critical Parts Destroyed . | . . . . Critical Strikes 2 | . . 2 . Meltdown 1 | . . 1 . Destroy 1 | . . 1 . Melee Attacks . | . . . . Impact . | . . . . Slashing . | . . . . Piercing . | . . . . Sneak Attacks . | . . . . Combat Hostiles . | . . . . Follow-up Attacks . | . . . . Damage Inflicted 2812 | 187 996 1600 29 Guns 1709 | 187 996 526 . Cannons 385 | . . 356 29 Explosions 718 | . . 718 . Melee . | . . . . Ramming . | . . . . Kinetic 1709 | 187 996 526 . Thermal 385 | . . 356 29 Explosive 718 | . . 718 . Electromagnetic . | . . . . Impact . | . . . . Slashing . | . . . . Piercing . | . . . . Highest Corruption 1 | . 1 1 1 Average Corruption 1 | . 1 1 1 Corruption Purged . | . . . . Corruption Blocked . | . . . . Effects 13 | . 5 7 1 Message Errors 2 | . . 2 . Matter Fused 4 | . 2 2 . Heat Flow Errors 1 | . . 1 . Energy Discharges 2 | . . 1 1 Data Loss (minor) 2 | . 1 1 . Data Loss (major) 1 | . 1 . . Misfires 1 | . 1 . . Overload Shots . | . . . . Overflow Damage . | . . . . Projectiles . | . . . . Explosions . | . . . . Melee . | . . . . Knockbacks . | . . . . Impact . | . . . . Kinetic . | . . . . Secondary . | . . . . Self-Inflicted Damage 34 | . . 34 . Shots 2 | . . 2 . Rammed . | . . . . Targets Rammed . | . . . . Kicked . | . . . . Crushed . | . . . . Highest Temperature 279 | . 12 279 198 Average Temperature 55 | . 7 75 88 Received Heat Transfer 695 | . 207 479 9 Siege Activations . | . . . . Martial Activations . | . . . . Shielding Activations . | . . . . Robots Disrupted . | . . . . Combat Hostiles . | . . . . Robots Corrupted . | . . . . Combat Hostiles . | . . . . Parts Fried . | . . . . Impact Corruptions . | . . . . Robots Melted 1 | . . 1 . Combat Hostiles . | . . . . Parts Melted . | . . . . Heat Transferred 518 | . . 481 37 Parts Sabotaged . | . . . . Parts Stolen . | . . . . Parts Stripped . | . . . . Power Chain Reactions . | . . . . Alert | -11 -10 -10 -8 ------- Run | Yrd Mat Sub Rec Maximum Alert Level . | . . . . Low Security (%) 100 | 100 100 . 100 Level 1 . | . . . . Level 2 . | . . . . Level 3 . | . . . . Level 4 . | . . . . Level 5 . | . . . . High Security . | . . . . Max Security . | . . . . Peak Influence 144 | 10 109 . 144 Initial 81 | . . . 81 Average 48 | 3 39 . 91 Influence Increases 741 | 30 368 245 98 Destroy 0b10 Robot/C 380 | . 200 160 20 Destroy 0b10 Robot/NC 65 | 30 35 . . Destroy Leader 60 | . 50 10 . Successful Hack 20 | . 8 . 12 Select Force Hacks 120 | . 60 . 60 Destroy Structure 6 | . . . 6 Partial Spotted 15 | . 15 . . Lose Combat Pursuer 75 | . . 75 . Influence Decreases 702 | 30 286 158 228 Entered New Map 128 | . . 40 88 Time Decay 572 | 30 286 116 140 Lost Part 2 | . . 2 . Squads Dispatched 4 | . 4 . . Investigation 4 | . 4 . . Extermination . | . . . . Reinforcement . | . . . . Assault . | . . . . Garrison . | . . . . Intercept . | . . . . Searches Triggered . | . . . . Construction Impeded . | . . . . Haulers Reinforced . | . . . . Active Scanning Responses . | . . . . Cargo Convoy Interrupts . | . . . . Stealth | -11 -10 -10 -8 --------- Run | Yrd Mat Sub Rec Distress Signals . | . . . . Communications Jammed . | . . . . Distress Signals . | . . . . Times Spotted 37 | . 18 15 4 Peak Tracking Total 4 | . 3 4 4 Tactical Retreats 1 | . . 1 . Traps | -11 -10 -10 -8 ------- Run | Yrd Mat Sub Rec Traps Triggered 4 | . 3 1 . Indirectly . | . . . . Trap Hack Attempts . | . . . . Triggered . | . . . . Disarmed . | . . . . Reprogrammed . | . . . . Reused . | . . . . Traps Extracted . | . . . . Installed . | . . . . Triggered . | . . . . Most Traps Carried 1 | . . 1 1 Machines | -11 -10 -10 -8 ---------- Run | Yrd Mat Sub Rec Machines Disabled 3 | . . 3 . Max in Single Turn 2 | . . 2 . Machines Repaired . | . . . . Machines Dismantled . | . . . . Machines Sabotaged . | . . . . Overloaded Fab Kills . | . . . . Hacking | -11 -10 -10 -8 --------- Run | Yrd Mat Sub Rec Machines Accessed 16 | . 10 2 4 Terminals 10 | . 8 . 2 Fabricators . | . . . . Repair Stations . | . . . . Recycling Units 4 | . 2 . 2 Scanalyzers . | . . . . Garrison Access . | . . . . Total Hacks 52 | . 31 4 17 Successful 30 | . 17 4 9 Failed 22 | . 14 . 8 Catastrophic 2 | . 2 . . Database Lockouts . | . . . . Manual 41 | . 28 . 13 Terminals 37 | . 26 . 11 Fabricators . | . . . . Repair Stations . | . . . . Recycling Units 11 | . 5 . 6 Scanalyzers . | . . . . Garrison Access . | . . . . Terminal Hacks 11 | . 5 4 2 Record 3 | . . 3 . Part Schematic 2 | . 1 . 1 Robot Schematic 1 | . 1 . . Robot Analysis 2 | . 2 . . Prototype ID Bank 1 | . . . 1 Terminal Index 1 | . 1 . . Proto ID Catalog 1 | . . 1 . Fabricator Hacks . | . . . . Repair Station Hacks . | . . . . Recycling Unit Hacks 5 | . 3 . 2 Report Inventory 4 | . 2 . 2 Retrieve Components 1 | . 1 . . Scanalyzer . | . . . . Garrison Access Hacks . | . . . . Unauthorized Hacks 14 | . 9 . 5 Terminals 10 | . 7 . 3 Botnet 3 | . 2 . 1 Skim 7 | . 5 . 2 Fabricators . | . . . . Repair Stations . | . . . . Recycling Units 4 | . 2 . 2 Tunnel 4 | . 2 . 2 Scanalyzers . | . . . . Garrison Access . | . . . . Data Cores Recovered . | . . . . Used . | . . . . Hacking Detections 11 | . 9 . 2 Full Trace Events . | . . . . Feedback Events . | . . . . Feedback Blocked . | . . . . Robot Schematics Acquired 1 | . 1 . . Robots Built . | . . . . Authchips . | . . . . Time . | . . . . Total Robot Build Rating . | . . . . Part Schematics Acquired 2 | . 1 . 1 Parts Built . | . . . . Authchips . | . . . . Time . | . . . . Total Part Build Rating . | . . . . Parts Repaired . | . . . . Time . | . . . . Parts Recycled . | . . . . Recycled Matter . | . . . . Retrieved Matter . | . . . . Retrieved Components 9 | . 9 . . Parts Scanalyzed . | . . . . Part Schematics Acquired . | . . . . Parts Damaged . | . . . . Bothacking | -11 -10 -10 -8 ------------ Run | Yrd Mat Sub Rec Used RIF Installer . | . . . . Robots Hacked . | . . . . Non-combat . | . . . . Combat . | . . . . Robot Hacks Applied . | . . . . Relay Couplers Released . | . . . . Fabnet Peak Effective % . | . . . . Robots Rewired . | . . . . Allies Hacked . | . . . . Hacks Repelled . | . . . . Allies | -11 -10 -10 -8 -------- Run | Yrd Mat Sub Rec Total Allies . | . . . . Largest Group . | . . . . Highest-Rated Group . | . . . . Highest-Rated Ally . | . . . . Total Orders . | . . . . Ally Attacks . | . . . . Total Damage . | . . . . Kills . | . . . . Allies Corrupted . | . . . . Allies Melted . | . . . . Intel | -11 -10 -10 -8 ------- Run | Yrd Mat Sub Rec Active Infowar (turns) 108 | 19 5 84 . Seismic 108 | 19 5 84 . Robot Analysis Total 2 | . 2 . . Derelict Logs Recovered 2 | . . 2 . Drone Launches . | . . . . Drone Recoveries . | . . . . Exploration | -11 -10 -10 -8 ------------- Run | Yrd Mat Sub Rec Turns Passed 2455 | 115 811 1237 292 Spaces Moved 1567 | 54 525 772 216 Core 1 | 1 . . . Treads 130 | . . 130 . Legs . | . . . . Wheels 1436 | 53 525 642 216 Hover . | . . . . Flight . | . . . . Fastest Speed 50 | 50 95 110 130 Average Speed 121 | 94 106 131 130 Slowest Speed 240 | 100 115 240 130 Overloaded Moves . | . . . . Propulsion Burnouts . | . . . . Robots Hopped . | . . . . Potential Cave-ins . | . . . . Cave-ins Triggered . | . . . . Exploration Rate (%) 42 | 3 73 57 37 Regions Visited 3 Branch Regions 2 Pre-discovered Areas 4 | . 2 . 2 Known Exits Taken 2 | . 1 1 . Unknown Exits Taken 1 | 1 . . . Scrap Searched 9 | . . 9 . Spaces Dug 13 | . . 10 3 Terrain Destroyed 55 | . . 49 6 Melee . | . . . . Projectile 11 | . . 5 6 AOE 44 | . . 44 . Terrain Rammed . | . . . . Walls Destroyed . | . . . . Machines Disabled . | . . . . Actions | -11 -10 -10 -8 --------- Run | Yrd Mat Sub Rec Total 1863 | 85 668 890 220 Wait 70 | 3 62 5 . Move 1564 | 53 524 771 216 Hop . | . . . . Pick Up 25 | 5 8 12 . Fast Attach 10 | 7 1 2 . Attach 6 | . . 6 . Detach 1 | . 1 . . Swap 26 | 1 5 20 . Drop 20 | . 4 16 . Fire 141 | 16 63 58 4 Melee . | . . . . Ram . | . . . . Kick . | . . . . Crush . | . . . . Escape Stasis . | . . . . Rewire . | . . . . Trap . | . . . . Miscellaneous . | . . . . Route ------- -11/Scrapyard -10/Materials (discovered 5 exits: *Mat x3 / [*Min] / *Sub) -10/Subcaves (discovered 2 exits: Mat / *Rec) -8/Recycling History --------- Turn | Location | Event 16 | -11/Scrapyard | Discovered new exit (range 15) 116 | -11/Scrapyard | Entered Materials 210 | -10/Materials | Discovered new exit (range 16) 311 | -10/Materials | Build established: Mutant 355 | -10/Materials | Discovered new exit (range 8) 639 | -10/Materials | Discovered new exit (range 5) 702 | -10/Materials | Learned Storage emergency access door positions 746 | -10/Materials | Learned location of 2 exits from Subcaves 779 | -10/Materials | Learned Storage trap positions 811 | -10/Materials | Learned 2 Storage zone layouts 814 | -10/Materials | Learned location of 2 exits from Mines 819 | -10/Materials | Identified exit to Subcaves 832 | -10/Materials | Identified exit to Materials 832 | -10/Materials | Learned location of 2 exits from Materials 853 | -10/Materials | Learned Storage terminal intel 927 | -10/Materials | Entered Subcaves 928 | -10/Subcaves | Identified exit to Recycling 928 | -10/Subcaves | Identified exit to Materials 930 | -10/Subcaves | Learned Materials stockpile data 938 | -10/Subcaves | Learned 2 Materials zone layouts 1018 | -10/Subcaves | Visited Clippyterm 1330 | -10/Subcaves | Core integrity fell below 50% 1641 | -10/Subcaves | Core integrity fell below 20% 1687 | -10/Subcaves | Shifting Twisted Machinery released Sub. Optics 1712 | -10/Subcaves | Shifting Twisted Machinery released Sub. Beam Cannon 1954 | -10/Subcaves | Visited 4L-MR0's lab 1971 | -10/Subcaves | Found Flightbrick 2164 | -10/Subcaves | Entered Recycling 2165 | -8/Recycling | Joined Warlord attack on 0b10 via Recycling 2456 | -8/Recycling | Destroyed by S-10 Pest with Light Assault Rifle Last Messages --------------- Terminal linked with 0 systems. Awaiting botnet instructions. >>Prototypes Downloading prototype IDs... Cld. Ion Engine Imp. Cesium-ion Thruster 02276_ Connecting with Terminal... >>Schematic(Imp. Utility Shielding) Downloading schematic... Imp. Utility Shielding Rating: 3 Schematic downloaded. >>Trojan(Skim) Trojan loaded successfully. Testing... Terminal linked with 1 system. Please expand to 3 more systems! 02327_ System corrupted: Energy discharge (-62). 02451_ G-47 Trooper springs to life. 02452_ S-10 Pest springs to life. Map ----- +----------------------------------------------------+ | | | | | | | | | | | ?????????????????????????????????????????????????? | | ?????????????????????????????????????????????????? | | ?????????????????????????????????????????????????? | | ?????????????????????????????????????????????????? | | ?????????????????????????????????????????????????? | | ?????????????????????????????????????????????????? | | ?????????????????????????????????????????????????? | | ?????????????????????????????????????????????????? | | ?????????????????????????????????????????????????? | | ?????????????????????????????????????????????????? | | ?????????????????????????????????????????????????? | | ?????????????????????????????????????????????????? | | ?????????????????????????????????????????????????? | | ?????????????????????????????????????????????????? | | ?????????????????????????????????????????????????? | | ?????????????????????????????????????????????????? | | ?????????????????????????????????????????????????? | | ?????????????????????????????????????????????????? | | ??????????????#######??##??????#####?????????????? | | ??????????????# ! h #s####### ##????????????? | | ??????????????# g] /s@ ;#????????????? | | ??????????????#r kg [#s### ### ##????????????? | | ??????????????# h ! ??##??# #?#####????#????????? | | ??????????????# ????????# ########## #????????? | | ???##########?# ??????????# ## #????????? | | ???? #?#????????????# ## #????????? | | ???? #??????????????# ## #????????? | | ????? #??????????????# ## #????????? | | ???? """ #?????????????## ## #????????? | | ???? """"" #?????????????# # #????????? | | ???# """"" #?????????????# + #????????? | | ???# """"" #?????????????# # #????????? | | ???# """ #?????????????## ############????????? | | ???# #?###??????????# #???????????????????? | | ##########+####%############ ##########??????????? | | # #??????????? | | + """ #??????????? | | % # """ #??????????? | | #######+##+###### ##### # """ #??????????? | | ???# #??# #???# + #??????????? | | ???# #??# #???# # """ #??????????? | | ???# #??#### #???# # """ #??????????? | | ??## #?????# #???# # """ #??????????? | | ??# #?????# #???# # #??????????? | | ??## #?????# #???# ####"T"###??????????? | +----------------------------------------------------+ Best States ------------- Heat Dissipation 25 Energy Generation 15 Energy Capacity 250 Matter Stores 300 Matter Capacity 300 Sight Range 16 Terrain Scan Density 10 Armor Coverage 100 Evasion (%) 42 Targeting Accuracy 6 Recoil Reduction 2 Item Schematics ----------------- Hcp. Storage Unit | -10/Materials | Hacked Imp. Utility Shielding | -8/Recycling | Hacked Robot Schematics ------------------ M-13 Machinist | -10/Materials | Hacked Fabricated ------------ Nothing Repaired ---------- Nothing Alien Tech Used ----------------- None Achievements -------------- None Challenges ------------ None Game ------ Seed PointySystemRailgun Manual? 0 Play Time 00:24:37 Cumulative 682.4 hours Start 2025.05.10 @ 00:00:25 End 2025.05.10 @ 00:22:16 Sessions 1 Manual Loads 0 Difficulty Rogue Special Mode None Game No. 270 Rogue 265 Adventurer 4 Explorer 1 Win Type - Total 10 Types 6/1/1/1/0/1/0/0/0/0 Lore% 93 Gallery% 87 Achievement% 87 Wizard Run 0 Options --------- Layout 0 ASCII 0 Keyboard 0 Movement Numpad Keybinds 0 Fullscreen 2 Font 18/CogNarrow Map View 76x50 Zoom Use 0% Tactical HUD 1 Map Filters NONE Filters NONE Steam 1 RUN: 3f976e9d-e0c6-4dea-a1ce-1d7a5ffa3439